{"text_format":"1","workbook":"xlsx","n_sheets":4,"sheets":["data","text","New CP30","Re-enrolled CP30"],"not_rendered":{"charts":0,"images":16,"macros":1,"external_links":2,"defined_names":6,"comments":0,"pivot_tables":0},"unopened":[],"bounds":{"document_bytes":16777216,"sheet_cells":100000,"rows_first":2000,"rows_last":500,"rows_between":2000,"halvings":0,"cell_chars":16384,"cell_head_chars":4096},"cells_cut":0,"cells_raw":0,"read":"whole","date_system":"1900"}

{"sheet":"data","index":0,"n_rows":179,"n_cols":9,"rows_kept":179,"cut":false,"hidden":true,"merged":[[129,1,129,6],[56,5,56,11],[58,5,58,11],[59,5,59,11],[57,5,57,8],[121,4,121,6],[123,4,123,6],[62,3,62,10],[64,2,64,8],[65,2,65,8],[66,2,66,8],[69,3,69,9],[70,3,70,9],[71,3,71,9],[130,1,130,6],[131,1,131,6],[132,1,132,6],[133,1,133,6],[134,1,134,6],[136,1,136,6],[137,1,137,6],[138,1,138,6],[139,1,139,6],[142,1,142,6],[143,1,143,6],[144,1,144,6],[145,1,145,6],[146,1,146,6],[147,1,147,6],[148,1,148,6],[149,1,149,6],[151,1,151,6],[152,1,152,6],[153,1,153,6],[162,1,162,6],[163,1,163,6],[164,1,164,6],[154,1,154,6],[155,1,155,6],[156,1,156,6],[157,1,157,6],[158,1,158,6],[176,1,176,6],[177,1,177,6],[178,1,178,6],[129,8,129,13],[170,1,170,6],[172,1,172,6],[173,1,173,6],[174,1,174,6],[175,1,175,6],[165,1,165,6],[166,1,166,6],[167,1,167,6],[168,1,168,6],[169,1,169,6],[159,1,159,6],[161,1,161,6]]}
["Participant",null,"Project or Contract"]
["Location",null,"County"]
["Farm Number",null,"Tract Number"]
[null,null,null,null,1]
[null,"Select ",null,null,2]
["x","CP 1",null,null,3]
[null,"CP 2",null,null,4]
[null,"CP 4D",null,null,5]
[null,"CP 8A",null,null,6]
[null,"CP 9",null,null,7]
[null,"CP 15A","new",null,8]
[null,"CP 21","re-enrolled",null,9]
[null,"CP 22",null,null,10]
[null,"CP 23"]
[null,"CP 23A"]
[null,"CP 29"]
[null,"CP 30"]
[null,"CP 33"]
[null,"CP 42"]
[]
[null,"Over-seeding Planned"]
["Mowing Pattern (Check 1) "]
[null,"Entire Acreage"]
[null,"Alternating row"]
[null,"Alternating block",null,null,"10 yrs to 10 yrs, 11 months           "]
[null,"Tree / Shrub Area  ",null,null,"11 yrs to 11 yrs, 11 months           "]
[null,"in year 4 or 5, but before end of year 6           ",null,null,"12 yrs to 12 yrs, 11 months           "]
[null,"in year 4 or 5, but before end of year 6",null,null,"13 yrs to 13 yrs, 11 months           "]
[null,"in year 4 or 5, but before end of year 6",null,null,"14 yrs to 14 yrs, 11 months           "]
[null,"in year 4 or 5, but before end of year 9           ",null,null,"15 years                                             "]
[null,"in year 4 or 5, but before end of year 9           ",null,null,"Re-enrollment contract"]
[null,"in year 4 or 5, but before end of year 9           "]
[{"$f":"data!#REF!","v":{"$error":"#REF!"}},"Not Applicable"]
[null,"before end of year 8"]
[null,"before end of year 9"]
[null,"before end of year 10"]
[null,"before end of year 11","Select a Purpose"]
[null,"before end of year 12","Provide or improve food and cover for fish, and wildlife."]
[null,"before end of year 13","Improve and maintain water quality."]
[null,"at re-enrollment","Reduce erosion and improve stability to stream banks and shorelines."]
[null,null,"Increase net carbon storage in the biomass and soil."]
[null,{"$f":"indirect","v":{"$error":"#NAME?"}},"Enhance pollen, nectar, and nesting habitat for pollinators."]
[null,null,"Restore, improve or maintain the desired plant communities."]
[null,null,"Establish or improve habitat corridors and landscape connectivity."]
[]
[]
[]
[]
["Select County"]
["Adams"]
["Allegheny"]
["Armstrong"]
["Beaver"]
["Bedford"]
["Berks"]
["Blair",null,"Select site preparation method",null,"  "]
["Bradford",null,"Apply appropriate herbicide(s) to CP30 acres prior to seeding, to remove existing vegetation.  ",null,null,"Use non-selective herbicides (like glyphosate) to remove all existing vegetation.  Extremely vigorous plants may require multiple treatments: apply herbicide(s) in early fall of the year prior to grass planting, followed by another spring application of herbicides at least two weeks prior to planting.  Always follow herbicide label instructions for rate, timing, and methods of herbicide application(s).  Take special care to avoid herbicide carryover that may negatively affect the CRP or CREP planting."]
["Bucks",null,"Cultivate the CP30 acres, to remove existing vegetation and prepare the seedbed. ",null,null,"Cultivation offers an alternative to herbicides, but requires careful consideration, as it is often less effective than herbicides for killing unwanted vegetation, may actually stir up weed seeds in the soil, and may increase the risk of runoff or erosion from sloped fields.  NRCS strongly recommends cover crops or nurse crops for erosion control and weed suppression on cultivated sites.  Plant cover crops of wheat, barley, or oats on the CP30 acres in the early fall of the year prior to grass planting.  Plant nurse crops of wheat, barley, or oats (oats are preferred, because they offer less competition to the new grasses) with the grass seed to minimize erosion and suppress weeds while minimizing competition.  Seed nurse crops at 1 bushel per acre."]
["Butler",null,"No site preparation is needed.",null,null,"This option only applies to fields with little or no weed pressure or competing vegetation AND little or no seed bed.  Be aware that weed control is easiest and most effective prior to planting, rather than after.  No cost-sharing is available from USDA for this activity. "]
["Cambria"]
["Cameron"]
["Carbon"]
["Centre"]
["Chester"]
["Clarion"]
["Clearfield"]
["Clinton"]
["Columbia"]
["Crawford"]
["Cumberland",null,null,"Conduct Prescribed Mowing on CP33 acres, dispersing mowing residues evenly across mowed areas.  Avoid wind rows, clumping, or other accumulated residues that may smother the desired cover or prevent seed-to-soil contact. "]
["Dauphin",null,null,"Conduct Prescribed Mowing on CP33 acres, removing mowing residues from the field by raking and baling, then destroying or donating residues.  Coordinate with FSA staff, who must verify the disposal of baled residues.  (Fee charged.) "]
["Delaware",null,null,"No management action needed.  No cost-sharing is associated with this option.  "]
["Elk"]
["Erie",null,"Select a MCM"]
["Fayette",null,"Interplanting"]
["Forest",null,"Inter-seeding / Overseeding"]
["Franklin",null,"Prescribed Mowing"]
["Fulton",null,"Spraying Herbicide for Wildlife Benefits"]
["Greene",null,"Strip-Spraying Herbicide for Plant Diversity"]
["Huntingdon"]
["Indiana"]
["Jefferson"]
["Juniata"]
["Lackawanna"]
["Lancaster",null,null,"wet_shrub"]
["Lawrence",null,null,"Azalea, swamp"]
["Lebanon",null,null,"Bayberry"]
["Lehigh",null,null,"Blueberry, highbush"]
["Luzerne",null,null,"Buttonbush"]
["Lycoming",null,null,"Chokeberry, black"]
["McKean",null,null,"Chokeberry, red"]
["Mercer",null,null,"Clethra, summersweet"]
["Mifflin",null,null,"Dogwood, grey"]
["Monroe",null,null,"Dogwood, redosier"]
["Montgomery",null,null,"Dogwood, silky"]
["Montour",null,null,"Elderberry"]
["Northampton",null,null,"Groundsel-bush"]
["Northumberland",null,null,"Hazelnut, American"]
["Perry",null,null,"Inkberry (holly)"]
["Philadelphia",null,null,"Magnolia, sweetbay"]
["Pike",null,null,"Meadowsweet"]
["Potter",null,null,"Ninebark"]
["Schuylkill",null,null,"Rhododendron, rosebay"]
["Snyder",null,null,"Rose, swamp"]
["Somerset",null,null,"Spicebush"]
["Sullivan",null,null,"Viburnum, arrowwood"]
["Susquehanna",null,null,"Viburnum, cranberrybush"]
["Tioga",null,null,"Viburnum, mapleleaf"]
["Union",null,null,"Viburnum, nannyberry"]
["Venango",null,null,"Viburnum, wither-rod"]
["Warren",null,null,"Winterberry (holly)"]
["Washington"]
["Wayne"]
["Westmoreland"]
["Wyoming"]
["York"]
[]
[]
[]
[null,null,null,"   "]
[null,null,null,"Select a seeding method","SeedingMethodLookup"]
[null,null,1,"No-Till drill /specialized No-Till drill ","After completion of site preparations, plant the selected seed mixture with a no-till drill, taking care to place seed at the proper depth in the soil.  Seeding pattern should be perpendicular to the direction of surface water flow whenever possible.  If planting native grasses, note that only switchgrass can be planted with a conventional no-till drill; all other WSGs require a no-till drill equipped with “fluffy seed” boxes or seed agitators of some kind.  Such drills may be available for free to USDA participants, from local PA Game Commission offices or Pheasants Forever chapters.  "]
["Native grasses typically need three years after seeding to fully establish.  During those three years, WSG establishment improves greatly with reduction of competing vegetation and/or weed pressure.  As a result, CRP and CREP rules allow mowing and spraying of WSG CP30 acres, at any time, for three years after seeding.  Do not mow CP30 acres lower than 8 inches, and follow all label instructions when applying appropriate herbicides.  Contact NRCS prior to mowing or spraying, for technical assistance and to document the establishment actions taken.",null,null,"Conventional drill.  ","After completion of site preparations, plant the selected seed mixture with a conventional drill, taking care to place seed at the proper depth in the soil.  Cultipack/firm seed bed after seeding.  Seed and cultipack perpendicular to the direction of surface water flow whenever possible.  "]
["Introduced cool-season grasses typically need one year after seeding to fully establish.  During that year, CSG establishment improves greatly with reduction of competing vegetation and/or weed pressure.  As a result, CRP and CREP rules allow mowing and spraying of CSG CP30 acres, at any time, for one years after seeding.  Do not mow CP30 acres lower than 6 inches, and follow all label instructions when applying appropriate herbicides.  Contact NRCS prior to mowing or spraying, for technical assistance and to document the establishment actions taken.",null,3,"Broadcasting  ","After completion of site preparations, plant the selected seed mixture by broadcasting seed.  Increase seeding rates by 50% more seed per acre when broadcasting, to compensate for lower germination rates resulting from less seed-to-soil contact.  For example, if a seed mixture’s no-till seeding rate is 6 lbs/ac, then the same seed mixture’s broadcast seeding rate would be 9 lbs/ac, to achieve similar germination rates.  Calibrate the broadcaster prior to spreading seed; use a free-flowing “carrier” material with the seed if needed.  For best results, broadcast half the total seed in one pattern (i.e. East – West), then broadcast the remaining seed perpendicular to the previous pattern (i.e. North – South).  Cultipack/firm seed bed after broadcasting; cultipacking pattern should be perpendicular to the direction of surface water flow whenever possible.     "]
[]
[]
["Choose a grass type",null,"    "]
["Native grass/wildflower mix"]
["Introduced cool-season/legume grass mix"]
[null,null,null,null,null,null,null,null,"All native warm-season grasses  (choose one mix)                                                                                                                                                                                                                                                                                                                                                   S    Switchgrass (3 lbs) and deertongue (3 lbs)                                                                           WD, MWD, SPD, PD                                                                                                                                                                                                                        B    Big bluestem (3 lbs), Indiangrass (1 lb), and Little Bluestem (2)                                      EWD, WD, MWD                                                                                                                                                                              B    Big bluestem (3 lbs), Indiangrass (2 lbs), and switchgrass (1)                                         EWD, WD, MWD, SPD                                                                                                                                                                   B    Big bluestem (3 lbs), Indiangrass (1 lb), Little bluestem (2) and switchgrass (1)         EWD, WD, MWD, SPD                                                                                                                                                                OR                                                                                                                                                                                                                                                                                                                                                                         Mixed native warm-season and cool-season grasses (choose one mix)                                                                                                                                                                                                                                                                           B   Big bluestem (2 lbs), Indiangrass (1 lb), Little bluestem (1 lb), switchgrass (1 lb),                                                                                                                                                                            sideoats                 sideoats grama (1 lb), and Canada wildrye (2 lbs)                                  EWD, WD, MWD                                                                                           R   Riverbank wildrye (5 lbs), Virginia wildrye (5 lbs), and switchgrass (1 lb)                    WD, MWD, SPD, PD                                                                                 C   Canada wildrye (4 lbs) and switchgrass (3 lbs)                                                                   EWD, WD, MWD, SPD                                                                               OR                                                                                                                                                                                                                                                                                                                                                                          Native cool-season grasses  (choose one mix)                                                                                                                                                                                                                                                                                                              C   Canada wildrye (3 lbs), Virginia wildrye (3 lbs), Riverbank wildrye (2 lbs),                                                                                                                                                          and                          and Bottlebrush (2 lbs)                                                                                  WD, MWD, SPD                                                                                                          C   Canada wildrye (4 lbs), Virginia wildrye (4 lbs), and Riverbank wildrye (2 lbs)           EWD, WD, MWD                                                                                                    R   Riverbank wildrye (4 lbs), Virginia wildrye (4 lbs), and Canada wildrye (2 lbs)           WD, MWD, SPD "]
[null,"Mixed native warm-season and cool-season grasses (choose one mix)"]
[null,"          Big bluestem (2 lbs), Indiangrass (1 lb), Little bluestem (1 lb), switchgrass (1 lb), sideoats grama (1 lb), and Canada wildrye (2 lbs)    EWD, WD, MWD   "]
[null,"          Big bluestem (3 lbs), eastern gamagrass (2 lbs), switchgrass (1 lb), deertongue (1 lb), and Virginia wildrye (3 lbs)    MWD, SPD "]
[null,"          Riverbank wildrye (5 lbs), Virginia wildrye (5 lbs), and switchgrass (1 lb)    WD, MWD, SPD, PD "]
[null,"          Canada wildrye (4 lbs) and switchgrass (3 lbs)    EWD, WD, MWD, SPD"]
[null,null,null,"OR"]
[null,"Native cool-season grasses  (choose one mix) "]
[null,"          Canada wildrye (3 lbs), Virginia wildrye (3 lbs), Riverbank wildrye (2 lbs), and Bottlebrush (2 lbs)    WD, MWD, SPD   "]
[null,"          Canada wildrye (4 lbs), Virginia wildrye (4 lbs), and Riverbank wildrye (2 lbs)    EWD, WD, MWD   "]
[null,"         Riverbank wildrye (4 lbs), Virginia wildrye (4 lbs), and Canada wildrye (2 lbs)    WD, MWD, SPD  "]
[]
[]
[null,"One grass / One legume  "]
[null,"                Timothy  (WD, MWD, SPD, PD)            or"]
[null,"                Orchardgrass  (EWD, WD, MWD)       or"]
[null,"                Kentucky bluegrass  (WD, MWD)      or"]
[null,"                Smooth bromegrass  (WD, MWD, SPD)"]
[null,"                               AND"]
[null,"                Birdsfoot trefoil  (WD, MWD)           or"]
[null,"                Ladino clover  (MWD)"]
[]
[null,"One grass / Three legumes  "]
[null,"                Timothy  (WD, MWD, SPD, PD)            or"]
[null,"                Orchardgrass  (EWD, WD, MWD)       or"]
[null,"                Kentucky bluegrass  (WD, MWD)      or"]
[null,"                Smooth bromegrass  (WD, MWD, SPD)"]
[null,"                               AND"]
[null,"                Ladino clover  (MWD)                       and"]
[null,"                Red clover  (WD, MWD)                    and"]
[null,"                Alsike clover  (SPD, PD)"]
[]
[null,"Two grasses / Two legumes "]
[null,"                Timothy  (WD, MWD, SPD, PD)         and"]
[null,"                Orchardgrass  (EWD, WD, MWD)    and"]
[null,"                Red clover  (WD, MWD)                   and"]
[null,"                Alsike clover  (SPD, PD)"]
[null,"                               OR"]
[null,"                Orchardgrass  (EWD, WD, MWD)    and"]
[null,"                Smooth bromegrass (WD, MWD, SPD) and"]
[null,"                Red clover  (WD, MWD)                   and"]
[null,"                Ladino clover  (MWD)"]
[]
[null,"Three grasses / Three legumes "]
[null,"                Timothy  (WD, MWD, SPD, PD)         and"]
[null,"                Orchardgrass  (EWD, WD, MWD)    and"]
[null,"                Smooth bromegrass (WD, MWD, SPD) and"]
[null,"                Ladino clover  (MWD)                     and"]
[null,"                Red clover  (WD, MWD)                  and"]
[null,"                Alsike clover  (SPD, PD)"]

{"sheet":"text","index":1,"n_rows":14,"n_cols":17,"rows_kept":14,"cut":false,"hidden":true,"merged":[[0,0,0,13],[11,16,11,27],[12,16,12,27],[13,16,13,27]]}
["CP"]
[1,2,"4D","8A",9,"15A",21,22,23,"23A",29,30,33,42,"comment"]
[null,null,null,"x",null,"x","x",null,null,null,null,null,null,null,"May receive a one-time Prescribed Mowing of their entire acreage.  "]
[]
[]
[]
[]
[]
[]
[]
[]
[null,null,null,null,null,null,null,null,null,null,null,null,null,null,null,null,"No-Till drill /specialized No-Till drill.  After completion of site preparations, plant the selected seed mixture with a no-till drill, taking care to place seed at the proper depth in the soil.  Seeding pattern should be perpendicular to the direction of surface water flow whenever possible.  Note that only switchgrass can be planted with a conventional no-till drill; all other WSGs require a no-till drill equipped with “fluffy seed” boxes or seed agitators of some kind.  Such drills may be available for free to USDA participants, from local PA Game Commission offices or Pheasants Forever chapters.  "]
[null,null,null,null,null,null,null,null,null,null,null,null,null,null,null,null,"Conventional drill.  After completion of site preparations, plant the selected seed mixture with a conventional drill, taking care to place seed at the proper depth in the soil.  Note that only switchgrass can be planted with a conventional no-till drill; all other WSGs require a no-till drill equipped with “fluffy seed” boxes or seed agitators of some kind.  Cultipack/firm seed bed after seeding.  Seed and cultipack perpendicular to the direction of surface water flow whenever possible.  "]
[null,null,null,null,null,null,null,null,null,null,null,null,null,null,null,null,"Broadcasting.  After completion of site preparations, plant the selected seed mixture by broadcasting seed.  Increase seeding rates by 50% more seed per acre when broadcasting, to compensate for lower germination rates resulting from less seed-to-soil contact.  For example, if a seed mixture’s no-till seeding rate is 6 lbs/ac, then the same seed mixture’s broadcast seeding rate would be 9 lbs/ac, to achieve similar germination rates.  Calibrate the broadcaster prior to spreading seed; use a free-flowing “carrier” material with the seed if needed.  For best results, broadcast half the total seed in one pattern (i.e. East – West), then broadcast the remaining seed perpendicular to the previous pattern (i.e. North – South).  Cultipack/firm seed bed after broadcasting; cultipacking pattern should be perpendicular to the direction of surface water flow whenever possible.     "]

{"sheet":"New CP30","index":2,"n_rows":224,"n_cols":15,"rows_kept":224,"cut":false,"hidden":false,"merged":[[209,4,209,8],[188,4,188,5],[188,6,188,7],[188,12,188,14],[172,11,172,14],[125,3,125,8],[126,3,126,8],[127,3,127,8],[128,3,128,8],[129,3,129,8],[151,3,151,14],[158,3,158,14],[166,2,166,6],[166,7,166,10],[170,2,170,6],[170,7,170,10],[170,11,170,14],[171,2,171,6],[171,7,171,10],[171,11,171,14],[166,11,166,14],[167,2,167,6],[167,7,167,10],[167,11,167,14],[210,4,210,8],[207,11,208,11],[207,12,208,12],[207,9,208,9],[95,2,95,14],[156,2,156,14],[157,2,157,14],[91,2,91,8],[92,2,92,8],[99,2,99,6],[185,4,185,5],[185,6,185,7],[185,12,185,14],[186,4,186,5],[186,6,186,7],[186,12,186,14],[183,6,184,7],[183,8,184,8],[183,9,184,9],[183,10,183,11],[183,12,183,14],[189,4,189,5],[189,6,189,7],[100,2,100,14],[85,2,85,8],[86,2,86,8],[87,2,87,8],[88,2,88,8],[93,2,93,8],[85,12,85,14],[86,12,86,14],[87,12,87,14],[90,2,90,11],[88,12,88,14],[221,2,221,14],[220,2,220,10],[177,2,177,14],[162,2,162,14],[163,2,163,14],[164,2,164,14],[165,2,165,14],[207,4,208,7],[206,2,207,2],[207,13,207,14],[175,2,175,14],[207,3,208,3],[207,10,208,10],[182,2,183,2],[183,3,184,3],[183,4,184,5],[216,4,216,8],[217,4,217,8],[218,4,218,8],[211,4,211,8],[212,4,212,8],[213,4,213,8],[214,4,214,8],[215,4,215,8],[4,11,4,13],[31,12,31,14],[2,11,2,13],[91,12,91,14],[92,12,92,14],[93,12,93,14],[20,2,20,14],[24,2,24,14],[7,2,7,14],[10,2,10,14],[2,4,2,8],[3,4,3,8],[4,4,4,8],[79,2,79,8],[80,2,80,8],[78,2,78,8],[27,2,27,14],[2,2,2,3],[3,2,3,3],[4,2,4,3],[11,2,11,3],[12,2,12,3],[81,12,81,14],[82,12,82,14],[13,2,13,3],[79,12,79,14],[80,12,80,14],[81,2,81,8],[21,2,21,14],[22,2,22,14],[26,2,26,13],[84,2,84,11],[82,2,82,8],[28,3,28,14],[75,12,75,14],[32,8,32,13],[36,2,36,8],[37,12,37,14],[38,12,38,14],[39,12,39,14],[40,12,40,14],[41,2,41,8],[41,12,41,14],[42,2,42,8],[42,12,42,14],[43,2,43,8],[43,12,43,14],[45,2,45,11],[168,2,168,6],[168,7,168,10],[168,11,168,14],[169,2,169,6],[169,7,169,10],[169,11,169,14],[155,7,155,13],[196,2,196,10],[197,2,197,14],[193,4,193,5],[193,6,193,7],[193,12,193,14],[194,4,194,5],[194,6,194,7],[194,12,194,14],[191,4,191,5],[191,6,191,7],[191,12,191,14],[192,4,192,5],[192,6,192,7],[192,12,192,14],[189,12,189,14],[190,4,190,5],[190,6,190,7],[190,12,190,14],[187,4,187,5],[187,6,187,7],[187,12,187,14],[172,2,172,6],[172,7,172,10],[45,12,45,14],[46,2,46,8],[46,12,46,14],[47,2,47,8],[47,12,47,14],[48,2,48,8],[48,12,48,14],[49,2,49,8],[49,12,49,14],[50,2,50,7],[50,12,50,14],[51,2,51,8],[51,12,51,14],[52,2,52,8],[52,12,52,14],[53,2,53,8],[53,12,53,14],[55,2,55,11],[56,2,56,8],[56,12,56,14],[57,2,57,8],[57,12,57,14],[58,2,58,8],[58,12,58,14],[59,2,59,8],[59,12,59,14],[60,2,60,7],[60,12,60,14],[61,2,61,8],[61,12,61,14],[62,2,62,8],[62,12,62,14],[63,2,63,8],[64,2,64,8],[64,12,64,14],[66,2,66,11],[66,12,66,14],[72,2,72,8],[72,12,72,14],[67,2,67,8],[67,12,67,14],[68,2,68,8],[68,12,68,14],[69,2,69,8],[69,12,69,14],[70,2,70,8],[70,12,70,14],[71,2,71,7],[71,12,71,14],[118,13,118,14],[123,9,123,10],[123,11,123,12],[124,9,124,10],[124,11,124,12],[125,9,125,10],[125,11,125,12],[126,9,126,10],[126,11,126,12],[127,9,127,10],[127,11,127,12],[128,9,128,10],[128,11,128,12],[129,9,129,10],[129,11,129,12],[130,9,130,10],[130,11,130,12],[135,11,135,12],[148,11,148,12],[136,2,139,2],[136,11,136,12],[137,11,137,12],[138,11,138,12],[139,11,139,12],[140,11,140,12],[141,11,141,12],[142,11,142,12],[144,2,147,2],[144,11,144,12],[145,11,145,12],[146,11,146,12],[147,11,147,12]]}
[]
[]
[null,null,"Participant:",null,null,null,null,null,null,null,"FSA Contract:  "]
[null,null,"Location:",null,null,null,null,null,null,null,"County:  "]
[null,null,"Farm Number:",null,null,null,null,null,null,null,"Tract Number:  "]
[]
[null,null,"Definition:"]
[null,null,"Grasses, sedges, rushes, ferns, legumes, forbs, and shrubs tolerant of intermittent flooding or saturated soils, established or managed as the dominant vegetation in the transitional zone between marginal pastures and wetlands."]
[]
[null,null,"Purpose:  "]
[null,null,"This practice establishes and maintains buffers of introduced or native grasses, forbs, and shrubs between eligible pastureland and water bodies to: "]
[null,null,"1."]
[null,null,"2."]
[null,null,"3."]
[null,null,null,"4."]
[null,null,null,"5."]
[null,null,null,"6."]
[null,null,null,"7."]
[]
[null,null,"Description:"]
[null,null,"The herbaceous and woody plants (grasses, forbs, legumes, shrubs, etc.) in a pasture buffer remove sediment, nutrients, pesticides and other pollutants in runoff that would otherwise reach nearby water bodies like streams and wetlands.  The vegetation shades and cools the water, encourages natural aquatic processes, and supports wildlife and insects.  In some cases, that same vegetation provides nectar, pollen, and egg-laying sites for pollinators.  The pasture buffers offer safety, food and living space for many wildlife species, frequently providing much-needed connecting corridors and linkages across the landscape.  The plants in pasture buffers also improve air quality by removing carbon dioxide from the air and storing it as organic carbon in the vegetation and soil."]
[]
[]
[null,"Yes","Practice Guidance for New CP30 Acres:  "]
[null,"Yes","Establish pasture buffers of either native grasses and wildflowers or introduced cool-season grasses, and possibly shrubs, adjacent to water bodies in the pasture fields indicated in Table 1 and on the Conservation Plan Map, by following the Site Preparation and Planting guidance below.  Weed control (mowing or herbicide treatment) during the establishment period after seeding may help the pasture buffer(s) establish succeessfully.  After successful establishment of the pasture buffer(s), follow the Operation and Maintenance requirements below.  CRP/CREP contracts also require periodic management of CP30 acres, which should follow the Mid-Contract Management guidance below."]
[null,"Yes","Site Preparation Method"]
[null,"Yes","Select site preparation method"]
[null,"Yes",{"$f":"IF(C27=data!C57,data!F57, IF(C27=data!C58,data!F58, IF(C27=data!C59,data!F59)))","v":false}]
[null,null,"SITE-                   SPECIFIC NOTES","Enter text here"]
[]
[]
[null,"Yes","Planting Guidance for New CP30 Acres      "]
[null,null,"  The pasture buffer(s) will be:",null,null,null,null,null,"Choose a grass type"]
[null,null,null,null,null,null,null,null,null,null,null,null,null,"Gray areas for USDA"]
[null,null,null,null,null,null,null,null,null,null,null,"lbs of ",null,"use only"]
[null,null,"Cool-season grass mix and drainage class*",null,null,null,null,null,null,"lbs / ac","Acres","seed","Seed tag verified?    "]
[null,null,"One grass / One legume",null,null,null,null,null,null,null,null,"needed","Yes","No"]
[null,null,"                Timothy  (WD, MWD, SPD, PD)            or",null,null,null,null,null,null,4,null,{"$f":"ROUNDUP((J38*K38),0)","v":0}]
[null,null,"                Orchardgrass  (EWD, WD, MWD)       or",null,null,null,null,null,null,5,null,{"$f":"ROUNDUP((J39*K39),0)","v":0}]
[null,null,"                Kentucky bluegrass  (WD, MWD)      or",null,null,null,null,null,null,7,null,0]
[null,null,"                Smooth bromegrass  (WD, MWD, SPD)",null,null,null,null,null,null,7,null,0]
[null,null,"                               AND"]
[null,null,"                Birdsfoot trefoil  (WD, MWD)           or",null,null,null,null,null,null,6,null,0]
[null,null,"                Ladino clover  (MWD)",null,null,null,null,null,null,2,null,0]
[]
[null,null,"One grass / Three legumes"]
[null,null,"                Timothy  (WD, MWD, SPD, PD)            or",null,null,null,null,null,null,4,null,{"$f":"ROUNDUP((J47*K47),0)","v":0}]
[null,null,"                Orchardgrass  (EWD, WD, MWD)       or",null,null,null,null,null,null,5,null,{"$f":"ROUNDUP((J48*K48),0)","v":0}]
[null,null,"                Kentucky bluegrass  (WD, MWD)      or",null,null,null,null,null,null,7,null,0]
[null,null,"                Smooth bromegrass  (WD, MWD, SPD)",null,null,null,null,null,null,7,null,0]
[null,null,"                               AND"]
[null,null,"                Ladino clover  (MWD)                       and",null,null,null,null,null,null,1,null,{"$f":"ROUNDUP((J52*K52),0)","v":0}]
[null,null,"                Red clover  (WD, MWD)                    and",null,null,null,null,null,null,2,{"$f":"K52","v":0},{"$f":"ROUNDUP((J53*K53),0)","v":0}]
[null,null,"                Alsike clover  (SPD, PD)",null,null,null,null,null,null,1,{"$f":"K52","v":0},0]
[]
[null,null,"Two grasses / Two legumes"]
[null,null,"                Timothy  (WD, MWD, SPD, PD)         and",null,null,null,null,null,null,4,null,{"$f":"ROUNDUP((J57*K57),0)","v":0}]
[null,null,"                Orchardgrass  (EWD, WD, MWD)    and",null,null,null,null,null,null,5,{"$f":"K57","v":0},{"$f":"ROUNDUP((J58*K58),0)","v":0}]
[null,null,"                Red clover  (WD, MWD)                   and",null,null,null,null,null,null,2,{"$f":"K57","v":0},0]
[null,null,"                Alsike clover  (SPD, PD)",null,null,null,null,null,null,2,{"$f":"K57","v":0},0]
[null,null,"                                OR"]
[null,null,"                Orchardgrass  (EWD, WD, MWD)    and",null,null,null,null,null,null,5,null,{"$f":"ROUNDUP((J62*K62),0)","v":0}]
[null,null,"                Smooth bromegrass (WD, MWD, SPD) and",null,null,null,null,null,null,6,{"$f":"K62","v":0},{"$f":"ROUNDUP((J63*K63),0)","v":0}]
[null,null,"                Red clover  (WD, MWD)                   and",null,null,null,null,null,null,2,{"$f":"K62","v":0},0]
[null,null,"                Ladino clover  (MWD)",null,null,null,null,null,null,2,{"$f":"K62","v":0},0]
[]
[null,null,"Three grasses / Three legumes "]
[null,null,"                Timothy  (WD, MWD, SPD, PD)         and",null,null,null,null,null,null,3,null,{"$f":"ROUNDUP((J68*K68),0)","v":0}]
[null,null,"                Orchardgrass  (EWD, WD, MWD)    and",null,null,null,null,null,null,3,{"$f":"K68","v":0},{"$f":"ROUNDUP((J69*K69),0)","v":0}]
[null,null,"                Smooth bromegrass (WD, MWD, SPD) and",null,null,null,null,null,null,4,{"$f":"+K68","v":0},0]
[null,null,"                Ladino clover  (MWD)                     and",null,null,null,null,null,null,1,{"$f":"K68","v":0},0]
[null,null,"                Red clover  (WD, MWD)                  and",null,null,null,null,null,null,2,{"$f":"K68","v":0},0]
[null,null,"                Alsike clover  (SPD, PD)",null,null,null,null,null,null,1,{"$f":"K68","v":0},0]
[]
[]
[null,null,null,null,null,null,null,null,null,null,null,null,"Items in gray for USDA"]
[null,"Yes",null,null,null,null,null,null,null,null,null,"lbs of ",null,"use only"]
[null,"Yes","Seed Mix and drainage class*",null,null,null,null,null,null,"lbs / ac","Acres","seed",null,"Seed tag verified?"]
[null,"Yes","All native warm-season grasses  (choose one mix)",null,null,null,null,null,null,null,null,"needed","Yes","No"]
[null,"Yes","          Switchgrass (3 lbs) and deertongue (3 lbs)                                     WD, MWD, SPD, PD ",null,null,null,null,null,null,6,null,{"$f":"ROUNDUP((J80*K80),0)","v":0}]
[null,"Yes","          Big bluestem (3 lbs), Indiangrass (1 lb), and Little Bluestem (2)    EWD, WD, MWD ",null,null,null,null,null,null,6,null,{"$f":"ROUNDUP((J81*K81),0)","v":0}]
[null,"Yes","          Big bluestem (3 lbs), Indiangrass (2 lbs), and switchgrass (1)    EWD, WD, MWD, SPD ",null,null,null,null,null,null,6,null,0]
[null,"Yes","          Big bluestem (3 lbs), Indiangrass (1 lb), Little bluestem (2) and switchgrass (1)                        EWD, WD, MWD, SPD   ",null,null,null,null,null,null,7,null,0]
[null,"Yes",null,null,"OR"]
[null,"Yes","Mixed native warm-season and cool-season grasses (choose one mix)"]
[null,"Yes","          Big bluestem (2 lbs), Indiangrass (1 lb), Little bluestem (1 lb), switchgrass (1 lb), sideoats grama (1 lb), and Canada wildrye (2 lbs)    EWD, WD, MWD   ",null,null,null,null,null,null,8,null,{"$f":"ROUNDUP((J86*K86),0)","v":0}]
[null,"Yes","          Big bluestem (3 lbs), eastern gamagrass (2 lbs), switchgrass (1 lb), deertongue (1 lb), and Virginia wildrye (3 lbs)    MWD, SPD ",null,null,null,null,null,null,10,null,{"$f":"ROUNDUP((J87*K87),0)","v":0}]
[null,"Yes","          Riverbank wildrye (5 lbs), Virginia wildrye (5 lbs), and switchgrass (1 lb)    WD, MWD, SPD, PD ",null,null,null,null,null,null,11,null,0]
[null,"Yes","          Canada wildrye (4 lbs) and switchgrass (3 lbs)    EWD, WD, MWD, SPD",null,null,null,null,null,null,7,null,0]
[null,"Yes",null,null,"OR"]
[null,"Yes","Native cool-season grasses  (choose one mix) "]
[null,"Yes","          Canada wildrye (3 lbs), Virginia wildrye (3 lbs), Riverbank wildrye (2 lbs), and Bottlebrush (2 lbs)    WD, MWD, SPD   ",null,null,null,null,null,null,10,null,{"$f":"ROUNDUP((J92*K92),0)","v":0}]
[null,"Yes","          Canada wildrye (4 lbs), Virginia wildrye (4 lbs), and Riverbank wildrye (2 lbs)    EWD, WD, MWD   ",null,null,null,null,null,null,10,null,{"$f":"ROUNDUP((J93*K93),0)","v":0}]
[null,"Yes","         Riverbank wildrye (4 lbs), Virginia wildrye (4 lbs), and Canada wildrye (2 lbs)    WD, MWD, SPD  ",null,null,null,null,null,null,10,null,0]
[null,"Yes"]
[null,"Yes","* Abbreviations represent the following soil drainage categories:  EWD = Excessively Well Drained; WD = Well Drained; MWD = Moderately Well Drained; SPD = Somewhat Poorly Drained; PD = Poorly Drained"]
[]
[]
[null,"Yes","Planting Method for New CP30 acres"]
[null,"Yes","Select a seeding method"]
[null,"Yes",{"$f":"IF(C100=data!D122,data!E122,IF(C100=data!D123,data!E123,IF(C100=data!D124,data!E124)))","v":false}]
[]
[null,null,"Plant Materials: Type, Spacing, and Amounts Needed"]
[]
[null,null,"DIRECT","Plant seeds or nuts on",null,null,null,null,null,"acres*, for the following specific reason(s):"]
[null,null,"SEED"]
[null,null,null,"   * see accompanying map for area(s) to be direct-seeded."]
[]
[null,null,null,"Planting large seeds or nuts -- acorns, walnuts, etc. -- on a 4' x 4' spacing (~ 2,700"]
[null,null,"choose","    seeds and nuts per acre) will require at least ",null,null,null,null,null,null,null,{"$f":"IF(J111=1,I111,J111)","v":0},"seeds or nuts."]
[null,null,"one (x)",null,null,null,null,null,{"$f":"ROUND((I105*2700),0)","v":0},{"$f":"COUNTA(C109)","v":0},null,{"$f":"ROUND((I105*100000),0)","v":0}]
[null,null,null,"Planting or broadcasting smaller seeds into prepared seedbeds at roughly "]
[null,null,null,"    100,000 seeds per acre will require at least",null,null,null,null,null,null,{"$f":"COUNTA(C112)","v":0},{"$f":"IF(K113=1,L111,K113)","v":0},"seeds."]
[]
[null,null,"LIVE","Plant live stakes which are at least 2' long, on",null,null,null,null,null,null,null,"acres*, for these reason(s): "]
[null,null,"STAKES"]
[null,null,null,"   * see accompanying map for area(s) to be planted with live stakes or cuttings."]
[]
[null,null,"Planting live stakes on a 5' x 5' spacing (roughly 1,750 live stakes per acre), will require ≥",null,null,null,null,null,null,null,null,null,null,{"$f":"ROUND((K115*1750),0)","v":0}]
[null,null,"live stakes.  Challenging locations may require adjustment or alteration of the planting layout."]
[]
[]
[null,null,"Plant Materials: Shrub Species "]
[null,null,"seeds, nuts, live stakes or cuttings"]
[null,null,"Site",null,null,"Shrub Species",null,null,null,"Planned #",null,"Applied #"]
[null,null,null,null,null,null,null,null,null,0,null,0]
[null,null,null,null,null,null,null,null,null,0,null,0]
[null,null,null,null,null,null,null,null,null,0,null,0]
[null,null,null,null,null,null,null,null,null,0,null,0]
[null,null,null,null,null,null,null,null,null,0,null,0]
[null,null,null,null,null,null,null,null,null,{"$f":"SUM(J125:J130)","v":0},null,{"$f":"SUM(L125:L130)","v":0}]
[]
[]
[]
[]
[null,null,"Shelter Specifications  ",null,null,null,null,null,null,null,"Planned #","Applied #"]
[null,null,"Shrub Shelters","Shelters for deciduous, single-stemmed shrubs",null,null,null,null,null,null,0]
[null,null,null,null,"type:","select",null,null,"shelter height:","select",{"$f":"K137+K170","v":0}]
[null,null,null,"Shelters for coniferous or multi-stemmed shrubs",null,null,null,null,null,null,0]
[null,null,null,"     (approved cages or similar large-diameter shelter systems only)"]
[null,null,null,null,null,null,null,null,null,"Total # of tubes or approved similar shelters =",{"$f":"K137","v":0}]
[null,null,null,null,null,null,null,null,null,"Total # of bird nets (or similar exclusion method) =",{"$f":"K137","v":0}]
[null,null,null,null,null,null,null,null,null,"Total # of cages or other approved large-diameter systems =",{"$f":"K139","v":0}]
[]
[null,null,"Stakes","Stakes for tree tubes or similar systems",null,null,null,null,null,null,{"$f":"K141","v":0}]
[null,null,null,"     (assumes one stake per tree tube or similar shelter)"]
[null,null,null,"Stakes for cages or large-diameter shelters",null,null,null,null,null,null,{"$f":"K139*2","v":0}]
[null,null,null,"     (assumes two stakes per cage or similar large-diameter shelter)"]
[null,null,null,null,null,null,null,null,null,"Total # of stakes =",{"$f":"K145+K147","v":0}]
[null,null,null,null,null,null,null,null,null,"Minimum # of cable ties or similar attachment method =",{"$f":"K149*2","v":0}]
[]
[null,null,"SITE-                   SPECIFIC NOTES","Enter text here"]
[]
[]
[null,"Yes","Establishment of New CP30 Acres"]
[null,null,"Type of grass used in buffer(s):",null,null,null,null,"Choose a grass type"]
[null,"Yes",{"$f":"IF(H156=data!A128,data!A123, IF(H156=data!A129,data!A124))","v":false}]
[null,"Yes","After the establishment period ends, mowing and spraying must follow the more restrictive timing and guidance given in Operation and Maintenance, below.  Therefore, NRCS recommends using the available mowing and/or spraying to its full advantage in the establishment years, to promote the most vigorous CP30 cover possible.    "]
[null,null,"SITE-                   SPECIFIC NOTES","Enter text here"]
[]
[]
[null,null,"Operation and Maintenance:   "]
[null,null,"To be compliant with the CRP/CREP contract, CP30 buffers must be at least 20 feet wide from the water body's edge/top of streambank."]
[null,null,"To control unwanted vegetation and to keep the existing conservation cover in compliance with the CRP/CREP contract, perform maintenance (by spot mowing or herbicide treatment) on specific, limited locations where weeds occur.  To avoid permanent damage to CP30 cover, do not mow WSGs below 8 inches or CSGs below 6 inches.  Treatment with appropriate herbicides should always follow label directions for rate, amount, and timing of herbicide application.  "]
[null,null,"Spot mowing and herbicide treatment can only occur on acres with weed pressure, and cannot exceed 1/3 (33%) of any field in a given year.  Both spot mowing and herbicide treatment must occur between August 1 and August 31.  If mowing more than 1/3 of a field or spot mowing or herbicide treatment needed at other times of the year—for example, thistle control in May or early June—is needed, it must be requested from and pre-approved by the FSA County Committee.  "]
[null,null,"Control noxious weeds (see list below) on all CP30 acres over the entire length of the CRP/CREP contract.  Mowing alone may not be sufficient to control noxious or woody vegetation; a follow-up herbicide treatment may be necessary.  Any CP30 cover destroyed must be re-established."]
[null,null,"animated oat",null,null,null,null,"giant hogweed",null,null,null,"musk/nodding thistle"]
[null,null,"broomrape",null,null,null,null,"goatsrue",null,null,null,"Palmer amaranth"]
[null,null,"bull thistle",null,null,null,null,"hydrilla",null,null,null,"poison hemlock"]
[null,null,"Canada thistle",null,null,null,null,"johnsongrass",null,null,null,"purple loosestrife"]
[null,null,"common waterhemp",null,null,null,null,"kudzu",null,null,null,"shattercane"]
[null,null,"dodder",null,null,null,null,"mile-a-minute",null,null,null,"tall waterhemp"]
[null,null,"Eur. wand loosestrife",null,null,null,null,"multiflora rose",null,null,null,"wavyleaf basketgrass"]
[]
[null,null,"Mid-Contract Management (MCM):   "]
[null,null,"Implement the MCM practices indicated in Table 2 below, to prolong, improve, or diversify the benefits of the CP30 cover.  Contact NRCS for a site visit and field evaluation before conducting MCM, to verify that the contracted MCM activity applies to the condition of the site."]
[]
[null,null,"By signing this document, the participant agrees to implement the CP30 conservation practice following the technical recommendations provided by NRCS and approved by FSA.    Any changes to the CP30 practice must receive NRCS and FSA approval prior to implementation."]
[]
[]
[]
[null,null,"Table 1: CP30 Implementation and Schedule"]
[null,null,"Select number of fields",null,null,null,null,null,null,null,"     (items in grey are for USDA reporting only)"]
[null,null,null,"Field","Acres Planned",null,"Year Planned",null,"Acres Applied","Date Applied","Certified by",null,"Comments"]
[null,null,10,null,null,null,null,null,null,null,"NRCS","Part."]
[null,null,null,1]
[{"$f":"IF($C$185<2,\"No\",\"Yes\")","v":"Yes"},null,null,2]
[{"$f":"IF($C$185<3,\"No\",\"Yes\")","v":"Yes"},null,null,3]
[{"$f":"IF($C$185<4,\"No\",\"Yes\")","v":"Yes"},null,null,4]
[{"$f":"IF($C$185<5,\"No\",\"Yes\")","v":"Yes"},null,null,5]
[{"$f":"IF($C$185<6,\"No\",\"Yes\")","v":"Yes"},null,null,6]
[{"$f":"IF($C$185<7,\"No\",\"Yes\")","v":"Yes"},null,null,7]
[{"$f":"IF($C$185<8,\"No\",\"Yes\")","v":"Yes"},null,null,8]
[{"$f":"IF($C$185<9,\"No\",\"Yes\")","v":"Yes"},null,null,9]
[{"$f":"IF($C$185<10,\"No\",\"Yes\")","v":"Yes"},null,null,10]
[]
[null,null,"Certification Statement:"]
[null,null,"I certify that implementation of this conservation practice is complete, meets criteria for the stated purpose(s), and meets the NRCS conservation practice standard and specifications."]
[]
[]
[null,null,"Certified By:"]
[]
[]
[]
[]
[null,null,"Table 2: Mid-Contract Management Activity and Schedule"]
[null,null,"Select number of fields",null,null,null,null,null,null,null,"     (items in grey are for USDA reporting only)"]
[null,null,null,"Field","Mid-Contract Management",null,null,null,null,"Acres Planned","Year Planned","Acres Applied","Year Applied","Certified By:"]
[null,null,10,null,null,null,null,null,null,null,null,null,null,"NRCS / TSP","Participant"]
[null,null,null,1,"Select a MCM"]
[{"$f":"IF($C$209<2,\"No\",\"Yes\")","v":"Yes"},null,null,2,"Select a MCM"]
[{"$f":"IF($C$209<3,\"No\",\"Yes\")","v":"Yes"},null,null,3,"Select a MCM"]
[{"$f":"IF($C$209<4,\"No\",\"Yes\")","v":"Yes"},null,null,4,"Select a MCM"]
[{"$f":"IF($C$209<5,\"No\",\"Yes\")","v":"Yes"},null,null,5,"Select a MCM"]
[{"$f":"IF($C$209<6,\"No\",\"Yes\")","v":"Yes"},null,null,6,"Select a MCM"]
[{"$f":"IF($C$209<7,\"No\",\"Yes\")","v":"Yes"},null,null,7,"Select a MCM"]
[{"$f":"IF($C$209<8,\"No\",\"Yes\")","v":"Yes"},null,null,8,"Select a MCM"]
[{"$f":"IF($C$209<9,\"No\",\"Yes\")","v":"Yes"},null,null,9,"Select a MCM"]
[{"$f":"IF($C$209<10,\"No\",\"Yes\")","v":"Yes"},null,null,10,"Select a MCM"]
[]
[null,null,"Certification Statement:"]
[null,null,"I certify that implementation of this conservation practice is complete, meets criteria for the stated purpose(s), and meets the NRCS conservation practice standard and specifications."]
[]
[null,null,"Certified By:"]

{"sheet":"Re-enrolled CP30","index":3,"n_rows":71,"n_cols":15,"rows_kept":71,"cut":false,"hidden":false,"merged":[[55,4,55,8],[56,4,56,8],[57,4,57,8],[66,2,66,10],[58,4,58,8],[67,2,67,14],[59,4,59,8],[60,4,60,8],[61,4,61,8],[62,4,62,8],[63,4,63,8],[64,4,64,8],[36,7,36,10],[36,11,36,14],[31,2,31,14],[29,2,29,14],[32,2,32,14],[36,2,36,6],[33,2,33,14],[35,2,35,14],[45,2,45,14],[47,2,47,14],[52,2,53,2],[53,3,54,3],[53,4,54,7],[53,9,54,9],[53,10,54,10],[53,11,54,11],[53,12,54,12],[53,13,53,14],[42,2,42,6],[42,7,42,10],[42,11,42,14],[37,2,37,6],[7,2,7,14],[10,2,10,14],[11,2,11,3],[12,2,12,3],[18,2,18,3],[20,2,20,14],[28,3,28,14],[22,2,22,14],[24,2,24,14],[25,3,25,14],[26,3,26,14],[27,3,27,14],[4,2,4,3],[4,4,4,8],[4,11,4,13],[2,2,2,3],[2,4,2,8],[2,11,2,13],[3,2,3,3],[3,4,3,8],[37,7,37,10],[37,11,37,14],[38,2,38,6],[38,7,38,10],[38,11,38,14],[39,11,39,14],[40,2,40,6],[40,7,40,10],[40,11,40,14],[41,2,41,6],[41,7,41,10],[41,11,41,14],[39,2,39,6],[39,7,39,10]]}
[]
[]
[null,null,"Participant:",null,null,null,null,null,null,null,"FSA Contract:  "]
[null,null,"Location:",null,null,null,null,null,null,null,"County:  "]
[null,null,"Farm Number:",null,null,null,null,null,null,null,"Tract Number:  "]
[]
[null,null,"Definition:"]
[null,null,"Grasses, sedges, rushes, ferns, legumes, forbs, and shrubs tolerant of intermittent flooding or saturated soils, established or managed as the dominant vegetation in the transitional zone between marginal pastures and wetlands."]
[]
[null,null,"Purpose:  "]
[null,null,"This practice establishes and maintains buffers of introduced or native grasses, forbs, and shrubs between eligible pastureland and water bodies to: "]
[null,null,"1."]
[null,null,"2."]
[null,null,null,"3."]
[null,null,null,"4."]
[null,null,null,"5."]
[null,null,null,"6."]
[null,null,null,"7."]
[]
[null,null,"Description:"]
[null,null,"The herbaceous and woody plants (grasses, forbs, legumes, shrubs, etc.) in a pasture buffer remove sediment, nutrients, pesticides and other pollutants in runoff that would otherwise reach nearby water bodies like streams and wetlands.  The vegetation shades and cools the water, encourages natural in-steam processes, and supports fish and insects.  In some cases, that same vegetation provides nectar, pollen, and egg-laying sites for pollinators.  The pasture buffers offer safety, food and living space for many wildlife species, frequently providing much-needed connecting corridors and linkages across the landscape.  The plants in pasture buffers also improve air quality by removing carbon dioxide from the air and storing it as organic carbon in the vegetation and soil."]
[null,null,"Practice Guidance for Re-Enrolled CP30 Acres:  "]
[null,null,"Maintain existing pasture buffers of either native grasses and wildflowers or introduced cool-season grasses, and possibly shrubs, adjacent to water bodies in the pasture fields indicated in Table 1 and on the Conservation Plan Map.  Follow the Operation and Maintenance requirements below.  CRP/CREP contracts also require periodic management of CP30 acres, which should follow the Mid-Contract Management guidance below."]
[null,null,"Grass Management for Re-Enrolled CP30 Acres"]
[null,null,"The current CP30 cover may benefit from actions to re-invigorate the herbaceous cover and prolong that cover throughout the new CRP/CREP contract.  Implement all activities checked below.  More than one management activity may be needed, or none may be needed.  Discuss cost-sharing or reimbursement availability with FSA prior to implementation of the actions. "]
[null,null,null,"Conduct Prescribed Mowing on CP30 acres, dispersing mowing residues evenly across mowed areas.  Avoid wind rows, clumping, or other accumulated residues that may smother the desired cover or prevent seed-to-soil contact. "]
[null,null,null,"Conduct Prescribed Mowing on CP30 acres, removing mowing residues from the field by raking and baling, then destroying or donating residues.  Coordinate with FSA staff, who must verify the disposal of baled residues.  (Fee charged.) "]
[null,null,null,"No management action needed.  No cost-sharing is associated with this option.  "]
[null,null,"SITE-                   SPECIFIC NOTES","Enter text here"]
[]
[null,null,"Operation and Maintenance:   "]
[null,null,"To be compliant with the CRP/CREP contract, CP30 buffers must be at least 20 feet wide from the water body's edge/top of streambank."]
[null,null,"To control unwanted vegetation and to keep the existing conservation cover in compliance with the CRP/CREP contract, perform maintenance (by spot mowing or herbicide treatment) on specific, limited locations where weeds occur.  To avoid permanent damage to CP30 cover, do not mow WSGs below 8 inches or CSGs below 6 inches.  Treatment with appropriate herbicides should always follow label directions for rate, amount, and timing of herbicide application.  "]
[null,null,"Spot mowing and herbicide treatment can only occur on acres with weed pressure, and cannot exceed 1/3 (33%) of any field in a given year.  Both spot mowing and herbicide treatment must occur between August 1 and August 31.  If mowing more than 1/3 of a field or spot mowing or herbicide treatment needed at other times of the year—for example, thistle control in May or early June—is needed, it must be requested from and pre-approved by the FSA County Committee.  "]
[]
[null,null,"Control noxious weeds (see list below) on all CP30 acres over the entire length of the CRP/CREP contract.  Mowing alone may not be sufficient to control noxious or woody vegetation; a follow-up herbicide treatment may be necessary.  Any CP30 cover destroyed must be re-established."]
[null,null,"animated oat",null,null,null,null,"giant hogweed",null,null,null,"musk/nodding thistle"]
[null,null,"broomrape",null,null,null,null,"goatsrue",null,null,null,"Palmer amaranth"]
[null,null,"bull thistle",null,null,null,null,"hydrilla",null,null,null,"poison hemlock"]
[null,null,"Canada thistle",null,null,null,null,"johnsongrass",null,null,null,"purple loosestrife"]
[null,null,"common waterhemp",null,null,null,null,"kudzu",null,null,null,"shattercane"]
[null,null,"dodder",null,null,null,null,"mile-a-minute",null,null,null,"tall waterhemp"]
[null,null,"Eur. wand loosestrife",null,null,null,null,"multiflora rose",null,null,null,"wavyleaf basketgrass"]
[]
[null,null,"Mid-Contract Management (MCM):   "]
[null,null,"Implement the MCM practices indicated in Table 1 below, to prolong, improve, or diversify the benefits of the CP30 cover.  Contact NRCS for a site visit and field evaluation before conducting MCM, to verify that the contracted MCM activity applies to the condition of the site."]
[]
[null,null,"By signing this document, the participant agrees to implement the CP30 conservation practice following the technical recommendations provided by NRCS and approved by FSA.  Any changes to the CP30 practice must receive NRCS and FSA approval prior to implementation."]
[]
[]
[]
[null,null,"Table 1: Mid-Contract Management Activity and Schedule"]
[null,null,"Select number of fields",null,null,null,null,null,null,null,"     (items in grey are for USDA reporting only)"]
[null,null,null,"Field","Mid-Contract Management",null,null,null,null,"Acres Planned","Year Planned","Acres Applied","Year Applied","Certified By:"]
[null,null,10,null,null,null,null,null,null,null,null,null,null,"NRCS / TSP","Participant"]
[null,null,null,1,"Select a MCM"]
[{"$f":"IF($C$55<2,\"No\",\"Yes\")","v":"Yes"},null,null,2,"Select a MCM"]
[{"$f":"IF($C$55<3,\"No\",\"Yes\")","v":"Yes"},null,null,3,"Select a MCM"]
[{"$f":"IF($C$55<4,\"No\",\"Yes\")","v":"Yes"},null,null,4,"Select a MCM"]
[{"$f":"IF($C$55<5,\"No\",\"Yes\")","v":"Yes"},null,null,5,"Select a MCM"]
[{"$f":"IF($C$55<6,\"No\",\"Yes\")","v":"Yes"},null,null,6,"Select a MCM"]
[{"$f":"IF($C$55<7,\"No\",\"Yes\")","v":"Yes"},null,null,7,"Select a MCM"]
[{"$f":"IF($C$55<8,\"No\",\"Yes\")","v":"Yes"},null,null,8,"Select a MCM"]
[{"$f":"IF($C$55<9,\"No\",\"Yes\")","v":"Yes"},null,null,9,"Select a MCM"]
[{"$f":"IF($C$55<10,\"No\",\"Yes\")","v":"Yes"},null,null,10,"Select a MCM"]
[]
[null,null,"Certification Statement:"]
[null,null,"I certify that implementation of this conservation practice is complete, meets criteria for the stated purpose(s), and meets the NRCS conservation practice standard and specifications."]
[]
[]
[null,null,"Certified By:"]